fUST/lending_fUST_20250222
["ID","MTS","AMOUNT","RATE_DAILY","PERIOD"]
[353991057,1740175843635,-512.14,0.00014356,2]
[353991059,1740175843644,-3505.3,0.00014356,2]
[353991061,1740175843653,-1101.28,0.00014356,2]
[353991063,1740175843663,-500.0,0.00014356,2]
[353991065,1740175843674,-500.0,0.00014356,2]
[353991067,1740175843684,-663.88,0.00014356,2]
[353991069,1740175843693,-2265.38,0.00014356,2]
[353991071,1740175843703,-841.18,0.00014356,2]
[353991073,1740175843713,-500.0,0.00014356,2]
[353991075,1740175843723,-870.29,0.00014356,2]
[353991077,1740175843732,-791.65,0.00014356,2]
[353991079,1740175843742,-500.0,0.00014356,2]
[353991081,1740175843752,-151.0,0.000144,2]
[353991083,1740175843761,-151.0,0.000144,2]
[353991085,1740175843771,-506.66,0.00014438,2]
[353991087,1740175843780,-530.51,0.00014438,2]
[353991089,1740175843789,-500.0,0.00014438,2]
[353991091,1740175843798,-683.46,0.00014438,2]
[353991093,1740175843808,-2167.54,0.00014438,2]
[353991095,1740175843818,-633.28,0.00014438,2]
[353991097,1740175843827,-5963.66,0.00014438,2]
[353991099,1740175843836,-440.94,0.00014438,2]
[353991101,1740175843845,-402.29,0.00014438,2]
[353991103,1740175843855,-1608.18,0.00014438,2]
[353991105,1740175843864,-624.26,0.00014438,2]
[353991107,1740175843873,-500.0,0.00014438,2]
[353991108,1740175843882,-500.0,0.00014438,2]
[353991110,1740175843892,-500.0,0.00014438,2]
[353991112,1740175843901,-596.69,0.00014438,2]
[353991114,1740175843911,-512.14,0.00014438,2]
[353991116,1740175843920,-3505.3,0.00014438,2]
[353991118,1740175843930,-1101.28,0.00014438,2]
[353991120,1740175843940,-500.0,0.00014438,2]
[353991122,1740175843949,-500.0,0.00014438,2]
[353991124,1740175843959,-663.88,0.00014438,2]
[353991126,1740175843968,-2265.38,0.00014438,2]
[353991128,1740175843978,-841.18,0.00014438,2]
[353991130,1740175843987,-500.0,0.00014438,2]
[353991132,1740175843996,-870.29,0.00014438,2]
[353991134,1740175844005,-791.65,0.00014438,2]
[353991136,1740175844015,-500.0,0.00014438,2]
[353991138,1740175844025,-151.0,0.000145,2]
[353991140,1740175844035,-151.0,0.000145,2]
[353991142,1740175844044,-151.0,0.000145,2]
[353991144,1740175844053,-530.51,0.0001452,2]
[353991146,1740175844063,-500.0,0.0001452,2]
[353991148,1740175844072,-683.46,0.0001452,2]
[353991150,1740175844081,-2167.54,0.0001452,2]
[353991152,1740175844090,-633.28,0.0001452,2]
[353991154,1740175844099,-5963.66,0.0001452,2]
[353991155,1740175844109,-295.74603666,0.0001452,2]
[353991157,1740175844119,-1608.18,0.0001452,2]
[353991159,1740175844128,-624.26,0.0001452,2]
[353991161,1740175844137,-336.34,0.0001452,2]
[353991163,1740175844147,-500.0,0.0001452,2]
[353991165,1740175844156,-500.0,0.0001452,2]
[353991167,1740175844166,-596.69,0.0001452,2]
[353991169,1740175844175,-512.14,0.0001452,2]
[353991171,1740175844184,-3505.3,0.0001452,2]
[353991173,1740175844195,-1101.28,0.0001452,2]
[353991175,1740175844204,-500.0,0.0001452,2]
[353991177,1740175844213,-500.0,0.0001452,2]
[353991178,1740175844223,-663.88,0.0001452,2]
[353991180,1740175844233,-2265.38,0.0001452,2]
[353991182,1740175844243,-841.18,0.0001452,2]
[353991184,1740175844252,-500.0,0.0001452,2]
[353991186,1740175844261,-870.29,0.0001452,2]
[353991188,1740175844270,-791.65,0.0001452,2]
[353991190,1740175844279,-500.0,0.0001452,2]
[353991192,1740175844289,-244.994,0.00014579,2]
[353991194,1740175844299,-355.163177,0.00014582,2]
[353991196,1740175844309,-151.0,0.000146,2]
[353991198,1740175844318,-2195.8262246,0.00014601,2]
[353991200,1740175844327,-530.51,0.00014602,2]
[353991202,1740175844337,-500.0,0.00014602,2]
[353991203,1740175844347,-683.46,0.00014602,2]
[353991205,1740175844356,-2167.54,0.00014602,2]
[353991207,1740175844366,-633.28,0.00014602,2]
[353991209,1740175844376,-5963.66,0.00014602,2]
[353991211,1740175844386,-1608.18,0.00014602,2]
[353991213,1740175844395,-624.26,0.00014602,2]
[353991215,1740175844405,-500.0,0.00014602,2]
[353991217,1740175844414,-500.0,0.00014602,2]
[353991219,1740175844424,-596.69,0.00014602,2]
[353991221,1740175844433,-512.14,0.00014602,2]
[353991223,1740175844443,-3505.3,0.00014602,2]
[353991225,1740175844452,-1101.28,0.00014602,2]
[353991227,1740175844462,-265.8,0.00014602,2]
[353991229,1740175844471,-500.0,0.00014602,2]
[353991230,1740175844480,-663.88,0.00014602,2]
[353991232,1740175844491,-2265.38,0.00014602,2]
[353991234,1740175844500,-841.18,0.00014602,2]
[353991236,1740175844509,-500.0,0.00014602,2]
[353991238,1740175844519,-870.29,0.00014602,2]
[353991240,1740175844528,-791.65,0.00014602,2]
[353991242,1740175844537,-500.0,0.00014602,2]
[353991244,1740175844549,-530.51,0.00014684,2]
[353991246,1740175844560,-683.46,0.00014684,2]
[353991248,1740175844569,-2167.54,0.00014684,2]
[353991250,1740175844578,-633.28,0.00014684,2]
[353991252,1740175844588,-5963.66,0.00014684,2]
[353991254,1740175844599,-1608.18,0.00014684,2]
[353991256,1740175844608,-624.26,0.00014684,2]
[353991258,1740175844618,-500.0,0.00014684,2]
[353991260,1740175844628,-500.0,0.00014684,2]
[353991262,1740175844638,-596.69,0.00014684,2]
[353991263,1740175844649,-512.14,0.00014684,2]
[353991265,1740175844659,-3505.3,0.00014684,2]
[353991267,1740175844668,-1101.28,0.00014684,2]
[353991269,1740175844677,-500.0,0.00014684,2]
[353991271,1740175844687,-663.88,0.00014684,2]
[353991273,1740175844696,-2265.38,0.00014684,2]
[353991275,1740175844706,-841.18,0.00014684,2]
[353991277,1740175844716,-500.0,0.00014684,2]
[353991279,1740175844725,-870.29,0.00014684,2]
[353991281,1740175844734,-791.65,0.00014684,2]
[353991283,1740175844744,-500.0,0.00014684,2]
[353991285,1740175844754,-9881.11112468,0.00014695,2]
[353991287,1740175844765,-151.0,0.000147,2]
[353991289,1740175844775,-151.0,0.000147,2]
[353991291,1740175844785,-151.0,0.000147,2]
[353991293,1740175844795,-1000.0,0.00014721,2]
[353991295,1740175844804,-186.01175625,0.00014766,2]
[353991303,1740175844888,-500.0,0.00014766,2]
[353991305,1740175844899,-500.0,0.00014766,2]
[353991306,1740175844908,-500.0,0.00014766,2]
[353991307,1740175844918,-500.0,0.00014766,2]
[353991308,1740175844927,-152.95721858,0.00014766,2]
[353991309,1740175844937,-530.51,0.00014767,2]
[353991310,1740175844946,-683.46,0.00014767,2]
[353991311,1740175844956,-2167.54,0.00014767,2]
[353991312,1740175844967,-633.28,0.00014767,2]
[353991313,1740175844977,-5963.66,0.00014767,2]
[353991314,1740175844987,-1608.18,0.00014767,2]
[353991315,1740175844997,-624.26,0.00014767,2]
[353991316,1740175845006,-408.45,0.00014767,2]
[353991317,1740175845017,-518.58241664,0.00014767,2]
[353991318,1740175845027,-596.69,0.00014767,2]
[353991319,1740175845036,-512.14,0.00014767,2]
[353991320,1740175845047,-3505.3,0.00014767,2]
[353991321,1740175845057,-1101.28,0.00014767,2]
[353991322,1740175845066,-500.0,0.00014767,2]
[353991323,1740175845076,-663.88,0.00014767,2]
[353991324,1740175845086,-2265.38,0.00014767,2]
[353991325,1740175845095,-841.18,0.00014767,2]
[353991326,1740175845106,-500.0,0.00014767,2]
[353991327,1740175845117,-870.29,0.00014767,2]
[353991328,1740175845127,-791.65,0.00014767,2]
[353991329,1740175845136,-500.0,0.00014767,2]
[353991330,1740175845146,-151.0,0.000148,2]
[353991331,1740175845156,-151.0,0.000148,2]
[353991332,1740175845166,-151.0,0.000148,2]
[353991333,1740175845176,-295.74603666,0.000148,2]
[353991335,1740175845186,-605.68784142,0.000148,2]
[353991337,1740175845195,-605.68784142,0.000148,2]
[353991339,1740175845205,-605.68784142,0.000148,2]
[353991340,1740175845214,-605.68784142,0.000148,2]
[353991342,1740175845224,-605.68784142,0.000148,2]
[353991344,1740175845233,-605.68784142,0.000148,2]
[353991346,1740175845242,-605.68784142,0.000148,2]
[353991348,1740175845251,-605.68784142,0.000148,2]
[353991350,1740175845260,-605.68784142,0.000148,2]
[353991352,1740175845269,-605.68784142,0.000148,2]
[353991354,1740175845279,-605.68784142,0.000148,2]
[353991356,1740175845289,-605.68784142,0.000148,2]
[353991358,1740175845298,-605.68784142,0.000148,2]
[353991360,1740175845307,-605.68784142,0.000148,2]
[353991362,1740175845317,-605.68784142,0.000148,2]
[353991364,1740175845326,-605.68784142,0.000148,2]
[353991366,1740175845336,-605.68784142,0.000148,2]
[353991368,1740175845345,-605.68784142,0.000148,2]
[353991369,1740175845355,-605.68784142,0.000148,2]
[353991370,1740175845364,-605.68,0.000148,2]
[353991371,1740175845374,-1413.27162999,0.000148,2]
[353991372,1740175845383,-1413.27162999,0.000148,2]
[353991373,1740175845393,-1413.27162999,0.000148,2]
[353991374,1740175845403,-1413.27162999,0.000148,2]
[353991375,1740175845413,-1413.27162999,0.000148,2]
[353991376,1740175845422,-1413.27162999,0.000148,2]
[353991377,1740175845432,-1413.27162999,0.000148,2]
[353991378,1740175845441,-1413.27162999,0.000148,2]
[353991379,1740175845451,-1413.27162999,0.000148,2]
[353991380,1740175845461,-1413.27162999,0.000148,2]
[353991381,1740175845470,-1413.27162999,0.000148,2]
[353991382,1740175845480,-1413.27162999,0.000148,2]
[353991383,1740175845490,-1413.27162999,0.000148,2]
[353991384,1740175845499,-1413.27162999,0.000148,2]
[353991385,1740175845509,-1413.27162999,0.000148,2]
[353991386,1740175845519,-1413.27162999,0.000148,2]
[353991387,1740175845529,-1413.27162999,0.000148,2]
[353991388,1740175845538,-1413.27162999,0.000148,2]
[353991389,1740175845548,-1413.27162999,0.000148,2]
[353991390,1740175845558,-1413.27,0.000148,2]
[353991391,1740175845568,-266.88030216,0.000148,2]
[353991393,1740175845578,-266.88030216,0.000148,2]
[353991395,1740175845587,-266.88030216,0.000148,2]
[353991397,1740175845598,-266.88030216,0.000148,2]
[353991399,1740175845608,-266.88030216,0.000148,2]
[353991401,1740175845617,-266.88030216,0.000148,2]
[353991404,1740175845627,-266.88030216,0.000148,2]
[353991406,1740175845639,-266.88030216,0.000148,2]
[353991408,1740175845649,-266.88030216,0.000148,2]
[353991412,1740175845659,-266.88030216,0.000148,2]
[353991416,1740175845669,-266.88030216,0.000148,2]
[353991417,1740175845678,-266.88030216,0.000148,2]
[353991419,1740175845688,-266.88030216,0.000148,2]
[353991421,1740175845697,-266.88030216,0.000148,2]
[353991423,1740175845707,-266.88030216,0.000148,2]
[353991425,1740175845717,-266.88030216,0.000148,2]
[353991427,1740175845727,-266.88030216,0.000148,2]
[353991429,1740175845736,-266.88030216,0.000148,2]
[353991431,1740175845746,-266.88030216,0.000148,2]
[353991433,1740175845757,-266.88,0.000148,2]
[353991435,1740175845766,-622.72070503,0.000148,2]
[353991437,1740175845775,-622.72070503,0.000148,2]
[353991439,1740175845785,-622.72070503,0.000148,2]
[353991441,1740175845795,-622.72070503,0.000148,2]
[353991443,1740175845805,-622.72070503,0.000148,2]
[353991445,1740175845815,-622.72070503,0.000148,2]
[353991447,1740175845824,-622.72070503,0.000148,2]
[353991449,1740175845834,-622.72070503,0.000148,2]
[353991451,1740175845844,-622.72070503,0.000148,2]
[353991453,1740175845854,-622.72070503,0.000148,2]
[353991455,1740175845863,-622.72070503,0.000148,2]
[353991458,1740175845873,-622.72070503,0.000148,2]
[353991459,1740175845883,-622.72070503,0.000148,2]
[353991461,1740175845893,-622.72070503,0.000148,2]
[353991463,1740175845902,-622.72070503,0.000148,2]
[353991465,1740175845912,-622.72070503,0.000148,2]
[353991467,1740175845922,-7940.65699248,0.000148,2]
[353991470,1740175845931,-622.72070503,0.000148,2]
[353991472,1740175845941,-4201.06302636,0.000148,2]
[353991474,1740175845950,-622.72070503,0.000148,2]
[353991475,1740175845960,-622.72070503,0.000148,2]
[353991477,1740175845969,-622.72,0.000148,2]
[353991479,1740175845979,-156.88816086,0.000148,2]
[353991481,1740175845988,-156.88816086,0.000148,2]
[353991483,1740175845998,-156.88816086,0.000148,2]
[353991486,1740175846007,-156.88816086,0.000148,2]
[353991487,1740175846016,-156.88816086,0.000148,2]
[353991489,1740175846026,-156.88816086,0.000148,2]
[353991491,1740175846035,-156.88816086,0.000148,2]
[353991493,1740175846044,-156.88816086,0.000148,2]
[353991495,1740175846054,-156.88816086,0.000148,2]
[353991497,1740175846064,-156.88816086,0.000148,2]
[353991500,1740175846074,-156.88816086,0.000148,2]
[353991502,1740175846084,-156.88816086,0.000148,2]
[353991504,1740175846093,-530.51,0.00014849,2]
[353991506,1740175846102,-683.46,0.00014849,2]
[353991508,1740175846113,-2167.54,0.00014849,2]
[353991510,1740175846123,-633.28,0.00014849,2]
[353991512,1740175846133,-5963.66,0.00014849,2]
[353991514,1740175846142,-1608.18,0.00014849,2]
[353991516,1740175846153,-624.26,0.00014849,2]
[353991518,1740175846163,-596.69,0.00014849,2]
[353991520,1740175846172,-512.14,0.00014849,2]
[353991522,1740175846182,-3505.3,0.00014849,2]
[353991524,1740175846192,-1101.28,0.00014849,2]
[353991526,1740175846201,-500.0,0.00014849,2]
[353991528,1740175846211,-663.88,0.00014849,2]
[353991530,1740175846220,-2265.38,0.00014849,2]
[353991532,1740175846230,-841.18,0.00014849,2]
[353991534,1740175846239,-500.0,0.00014849,2]
[353991536,1740175846248,-870.29,0.00014849,2]
[353991538,1740175846258,-791.65,0.00014849,2]
[353991540,1740175846267,-181.18,0.00014849,2]
[353991542,1740175846276,-500.0,0.00014873,2]
[353991544,1740175846285,-500.0,0.00014873,2]
[353991545,1740175846294,-500.0,0.00014873,2]
[353991547,1740175846303,-500.0,0.00014873,2]
[353991549,1740175846312,-500.0,0.00014873,2]
[353991551,1740175846322,-500.0,0.00014873,2]
[353991553,1740175846331,-500.0,0.00014873,2]
[353991555,1740175846340,-500.17400097,0.00014873,2]
[353991557,1740175846349,-500.38433033,0.00014873,2]
[353991559,1740175846358,-500.0,0.00014873,2]
[353991561,1740175846367,-232.63584415,0.00014899,2]
[353991563,1740175846376,-151.0,0.00014899,2]
[353991565,1740175846386,-18785.57210896,0.000149,5]
[353991567,1740175846395,-3050.75898372,0.000149,5]
[353991569,1740175846404,-617583.2511142,0.000149,5]
[353991574,1740175846438,-500.0,0.0001378,2]
[353991576,1740175846447,-84.3672,0.00013863,2]
[353991579,1740175846467,-192.75617191,0.00013863,2]
[353991581,1740175846476,-154.83773562,0.000149,5]
[353991583,1740175846487,-10567.9999999,0.000149,5]
[353991586,1740175846498,-692.13600239,0.000149,5]
[353991588,1740175846509,-537.0,0.000149,5]
[353991590,1740175846520,-5108.84679761,0.000149,5]
[353991595,1740175846558,-500.0,0.00013698,2]
[353991597,1740175846568,-500.0,0.00013698,2]
[353991599,1740175846578,-265.96891735,0.00013698,2]
[353994525,1740175909892,234.227736,9.041e-05,2]
[353994547,1740176826117,-300.0,0.00012903,2]
[353994548,1740176826140,-24900.0,0.00012904,2]
[353994549,1740176826163,-168.0715141,0.00013597,2]
[353994550,1740176826184,-236.59682936,0.00013598,2]
[353994551,1740176826207,-500.0,0.00013673,2]
[353994552,1740176826227,-501.05051859,0.00013673,2]
[353994553,1740176826248,-500.0,0.00013673,2]
[353994554,1740176826269,-416.19331072,0.00013673,2]
[353994555,1740176826290,-235.57027522,0.00013673,2]
[353994556,1740176826310,-500.0,0.00013673,2]
[353994557,1740176826333,-411.70304076,0.00013697,2]
[353994558,1740176826356,-500.0,0.00013697,2]
[353994559,1740176826378,-543.69294325,0.00013697,2]
[353994560,1740176826401,-500.0,0.00013697,2]
[353994561,1740176826424,-500.0,0.00013697,2]
[353994562,1740176826446,-500.0,0.00013697,2]
[353994563,1740176826472,-500.0,0.00013697,2]
[353994564,1740176826495,-500.0,0.00013697,2]
[353994565,1740176826518,-500.0,0.00013697,2]
[353994566,1740176826541,-500.0,0.00013697,2]
[353994567,1740176826561,-217.89154688,0.00013697,2]
[353994568,1740176826592,-500.0,0.00013697,2]
[353994569,1740176826625,-500.0,0.00013697,2]
[353994570,1740176826655,-500.0,0.00013697,2]
[353994571,1740176826684,-500.0,0.00013697,2]
[353994572,1740176826715,-500.0,0.00013697,2]
[353994573,1740176826744,-500.0,0.00013697,2]
[353994574,1740176826777,-249.34542636,0.00013697,2]
[353994575,1740176826808,-500.0,0.00013697,2]
[353994576,1740176826833,-500.0,0.00013697,2]
[353994577,1740176826861,-500.0,0.00013697,2]
[353994578,1740176826890,-500.0,0.00013697,2]
[353994579,1740176826919,-500.0,0.00013697,2]
[353994580,1740176826951,-500.0,0.00013697,2]
[353994581,1740176826981,-500.0,0.00013697,2]
[353994582,1740176827010,-500.0,0.00013697,2]
[353994583,1740176827040,-500.0,0.00013697,2]
[353994584,1740176827072,-500.0,0.00013697,2]
[353994585,1740176827104,-500.0,0.00013697,2]
[353994586,1740176827137,-500.0,0.00013697,2]
[353994587,1740176827170,-500.0,0.00013697,2]
[353994588,1740176827200,-500.0,0.00013697,2]
[353994589,1740176827233,-500.0,0.00013697,2]
[353994590,1740176827264,-310.55427998,0.00013697,2]
[353994591,1740176827292,-500.0,0.00013697,2]
[353994592,1740176827320,-500.0,0.00013698,2]
[353994593,1740176827351,-500.0,0.00013698,2]
[353994594,1740176827373,-301.49634099,0.00013698,2]
[353994595,1740176827398,-500.0,0.00013698,2]
[353994596,1740176827425,-500.0,0.00013698,2]
[353994597,1740176827451,-500.0,0.00013698,2]
[353994598,1740176827479,-500.0,0.00013698,2]
[353994599,1740176827505,-500.0,0.00013698,2]
[353994600,1740176827534,-502.69571442,0.00013698,2]
[353994601,1740176827562,-634.92442102,0.00013698,2]
[353994602,1740176827588,-500.0,0.00013698,2]
[353994603,1740176827613,-507.59519644,0.00013698,2]
[353994604,1740176827638,-500.0,0.00013698,2]
[353994605,1740176827664,-339.79387179,0.00013698,2]
[353994606,1740176827689,-500.0,0.00013698,2]
[353994607,1740176827715,-500.0,0.00013698,2]
[353994608,1740176827741,-500.0,0.00013698,2]
[353994609,1740176827766,-500.0,0.00013698,2]
[353994610,1740176827792,-500.0,0.00013698,2]
[353994611,1740176827818,-500.0,0.00013698,2]
[353994612,1740176827844,-500.0,0.00013698,2]
[353994613,1740176827868,-500.0,0.00013698,2]
[353994614,1740176827895,-500.35644423,0.00013698,2]
[353994615,1740176827920,-500.0,0.00013698,2]
[353994616,1740176827951,-648.90031257,0.00013698,2]
[353994617,1740176827976,-500.0,0.00013698,2]
[353994618,1740176828002,-500.0,0.00013698,2]
[353994619,1740176828029,-500.0,0.00013698,2]
[353994620,1740176828206,-500.0,0.00013698,2]
[353994621,1740176828229,-500.0,0.00013698,2]
[353994622,1740176828250,-500.0,0.00013698,2]
[353994623,1740176828271,-500.0,0.00013698,2]
[353994624,1740176828293,-500.0,0.00013698,2]
[353994625,1740176828315,-500.0,0.00013698,2]
[353994626,1740176828335,-500.0,0.00013698,2]
[353994627,1740176828356,-500.0,0.00013698,2]
[353994628,1740176828378,-500.0,0.00013698,2]
[353994629,1740176828399,-500.0,0.00013698,2]
[353994630,1740176828420,-500.0,0.00013698,2]
[353994631,1740176828441,-500.0,0.00013698,2]
[353994632,1740176828463,-500.0,0.00013698,2]
[353994633,1740176828485,-500.0,0.00013698,2]
[353994634,1740176828508,-500.0,0.00013698,2]
[353994635,1740176828529,-500.41855949,0.00013698,2]
[353994636,1740176828549,-500.0,0.00013698,2]
[353994637,1740176828570,-500.0,0.00013698,2]
[353994638,1740176828591,-500.0,0.00013698,2]
[353994639,1740176828611,-500.0,0.00013698,2]
[353994640,1740176828632,-500.0,0.00013698,2]
[353994641,1740176828654,-500.0,0.00013698,2]
[353994642,1740176828675,-500.0,0.00013698,2]
[353994643,1740176828696,-253.46857592,0.00013698,2]
[353994644,1740176828717,-500.0,0.00013698,2]
[353994645,1740176828739,-500.0,0.00013698,2]
[353994646,1740176828761,-500.0,0.00013698,2]
[353994647,1740176828783,-500.0,0.00013698,2]
[353994648,1740176828804,-500.0,0.00013698,2]
[353994649,1740176828825,-108.19002323,0.00013698,2]
[353994650,1740176849081,-391.80997677,0.00013698,2]
[353994651,1740176849103,-500.0,0.00013698,2]
[353994652,1740176849126,-500.33713137,0.00013698,2]
[353994653,1740176849147,-500.0,0.00013698,2]
[353994654,1740176849171,-215.97926864,0.00013698,2]
[353994655,1740176849192,-500.0,0.00013698,2]
[353994656,1740176849213,-500.0,0.00013698,2]
[353994657,1740176849234,-500.0,0.00013698,2]
[353994658,1740176849255,-500.0,0.00013698,2]
[353994659,1740176849276,-500.0,0.00013698,2]
[353994660,1740176849297,-500.0,0.00013698,2]
[353994661,1740176849318,-500.0,0.00013698,2]
[353994662,1740176849340,-500.0,0.00013698,2]
[353994663,1740176849362,-500.0,0.00013698,2]
[353994664,1740176849384,-426.52110053,0.00013698,2]
[353994665,1740176849408,-500.0,0.00013698,2]
[353994666,1740176849429,-500.0,0.00013698,2]
[353994667,1740176849451,-500.0,0.00013698,2]
[353994668,1740176849475,-500.0,0.00013698,2]
[353994669,1740176849497,-500.0,0.00013698,2]
[353994670,1740176849517,-500.0,0.00013698,2]
[353994671,1740176849539,-500.0,0.00013698,2]
[353994672,1740176849560,-438.81142038,0.00013698,2]
[353994673,1740176849582,-500.0,0.00013698,2]
[353994674,1740176849602,-500.0,0.00013698,2]
[353994675,1740176849622,-500.0,0.00013698,2]
[353994676,1740176849643,-500.0,0.00013698,2]
[353994677,1740176849664,-500.0,0.00013698,2]
[353994678,1740176849684,-500.0,0.00013698,2]
[353994679,1740176849705,-500.0,0.00013698,2]
[353994680,1740176849725,-500.0,0.00013698,2]
[353994681,1740176849747,-500.0,0.00013698,2]
[353994682,1740176849767,-500.0,0.00013698,2]
[353994683,1740176849789,-500.0,0.00013698,2]
[353994684,1740176849811,-508.0579383,0.00013698,2]
[353994685,1740176849832,-500.0,0.00013698,2]
[353994686,1740176849853,-500.0,0.00013698,2]
[353994687,1740176849874,-500.0,0.00013698,2]
[353994688,1740176849895,-500.0,0.00013698,2]
[353994689,1740176849916,-500.0,0.00013698,2]
[353994690,1740176849939,-500.0,0.00013698,2]
[353994691,1740176849960,-500.0,0.00013698,2]
[353994692,1740176849982,-500.0,0.00013698,2]
[353994693,1740176850003,-500.0,0.00013698,2]
[353994694,1740176850025,-500.0,0.00013698,2]
[353994695,1740176850046,-151.27837567,0.00013698,2]
[353994696,1740176850067,-500.0,0.00013698,2]
[353994697,1740176850087,-500.0,0.00013698,2]
[353994698,1740176850107,-500.0,0.00013698,2]
[353994699,1740176850127,-500.0,0.00013698,2]
[353994700,1740176850148,-500.0,0.00013698,2]
[353994701,1740176850169,-500.0,0.00013698,2]
[353994702,1740176850190,-350.57794522,0.00013698,2]
[353994703,1740176850214,-502.45800102,0.00013698,2]
[353994704,1740176850236,-500.0,0.00013698,2]
[353994705,1740176850257,-500.0,0.00013698,2]
[353994706,1740176850278,-500.0,0.00013698,2]
[353994707,1740176850298,-500.0,0.00013698,2]
[353994708,1740176850317,-513.96777686,0.00013698,2]
[353994709,1740176850337,-500.0,0.00013698,2]
[353994710,1740176850357,-500.0,0.00013698,2]
[353994711,1740176850377,-500.0,0.00013698,2]
[353994712,1740176850397,-500.0,0.00013698,2]
[353994713,1740176850419,-500.0,0.00013698,2]
[353994714,1740176850439,-500.0,0.00013698,2]
[353994715,1740176850459,-500.0,0.00013698,2]
[353994716,1740176850483,-500.0,0.00013698,2]
[353994717,1740176850504,-500.0,0.00013698,2]
[353994718,1740176850524,-500.0,0.00013698,2]
[353994719,1740176850545,-500.0,0.00013698,2]
[353994720,1740176850565,-500.0,0.00013698,2]
[353994721,1740176850585,-500.0,0.00013698,2]
[353994722,1740176850605,-500.0,0.00013698,2]
[353994723,1740176850625,-500.0,0.00013698,2]
[353994724,1740176850645,-500.0,0.00013698,2]
[353994725,1740176850666,-500.0,0.00013698,2]
[353994726,1740176850686,-500.0,0.00013698,2]
[353994727,1740176850705,-500.0,0.00013698,2]
[353994728,1740176850727,-500.0,0.00013698,2]
[353994729,1740176850747,-500.0,0.00013698,2]
[353994730,1740176850768,-500.0,0.00013698,2]
[353994731,1740176850790,-163.90644286,0.00013698,2]
[353994732,1740176850812,-500.0,0.00013698,2]
[353994733,1740176850834,-500.0,0.00013698,2]
[353994734,1740176850855,-500.0,0.00013698,2]
[353994735,1740176850876,-500.0,0.00013698,2]
[353994736,1740176850898,-500.0,0.00013698,2]
[353994737,1740176851020,-500.0,0.00013698,2]
[353994738,1740176851043,-500.0,0.00013698,2]
[353994739,1740176851064,-500.0,0.00013698,2]
[353994740,1740176851086,-500.0,0.00013698,2]
[353994741,1740176851107,-500.0,0.00013698,2]
[353994742,1740176851128,-500.0,0.00013698,2]
[353994743,1740176851149,-500.0,0.00013698,2]
[353994744,1740176851171,-500.0,0.00013698,2]
[353994745,1740176851192,-500.0,0.00013698,2]
[353994746,1740176851213,-500.0,0.00013698,2]
[353994747,1740176851233,-500.0,0.00013698,2]
[353994748,1740176851253,-500.0,0.00013698,2]
[353994749,1740176851274,-500.0,0.00013698,2]
[353994750,1740176851295,-500.0,0.00013698,2]
[353994751,1740176851315,-500.0,0.00013698,2]
[353994752,1740176851335,-500.0,0.00013698,2]
[353994753,1740176851355,-500.0,0.00013698,2]